fUST/lending_fUST_20250108
["ID","MTS","AMOUNT","RATE_DAILY","PERIOD"]
[348060065,1736289046951,-352.9591083,0.00022027,2]
[348060067,1736289046960,-352.9591083,0.00022027,2]
[348060069,1736289046969,-352.9591083,0.00022027,2]
[348060071,1736289046981,-352.0426383,0.00022027,2]
[348060073,1736289046993,-214.5892987,0.00022078,2]
[348060075,1736289047005,-153.693575,0.00022078,2]
[348060077,1736289047014,-500.0,0.00022164,3]
[348060079,1736289047024,-616.54,0.00022164,3]
[348060080,1736289047035,-500.0,0.00022164,3]
[348060081,1736289047044,-156.3950149,0.00022164,2]
[348060082,1736289047053,-214.6648391,0.00022164,2]
[348060083,1736289047065,-335.8175691,0.00022164,2]
[348060084,1736289047074,-157.433088,0.00022164,2]
[348060085,1736289047084,-153.7491537,0.00022164,2]
[348060086,1736289047094,-153.7491537,0.00022164,2]
[348060087,1736289047103,-214.6648391,0.00022164,2]
[348060088,1736289047112,-153.7491537,0.00022164,2]
[348060089,1736289047122,-214.6648391,0.00022164,2]
[348060090,1736289047132,-1094.48,0.00022188,3]
[348060091,1736289047141,-503.67544171,0.00022188,3]
[348060092,1736289047152,-500.0,0.0002219,3]
[348060093,1736289047161,-1200.0,0.0002219,2]
[348060094,1736289047170,-500.0,0.00022191,3]
[348060095,1736289047179,-423.0,0.00022192,2]
[348060096,1736289047188,-157.71749746,0.00022382,2]
[348060097,1736289047197,-1094.48,0.00022462,3]
[348060098,1736289047207,-500.0,0.00022464,3]
[348060099,1736289047217,-500.0,0.00022465,3]
[348060100,1736289047228,-1230.40890882,0.00022622,2]
[348060101,1736289047237,-157.71749746,0.00022631,2]
[348060102,1736289047247,-1094.48,0.00022736,3]
[348060103,1736289047256,-500.0,0.00022738,3]
[348060104,1736289047265,-603.1492242,0.00022739,3]
[348060105,1736289047275,-260.0,0.00022859,2]
[348060106,1736289047285,-157.71749746,0.0002288,2]
[348060107,1736289047295,-1000.0,0.000229,10]
[348060108,1736289047304,-501.36899371,0.00022973,2]
[348060109,1736289047314,-238.95117041,0.00022979,2]
[348060110,1736289047323,-500.0,0.00022979,5]
[348060111,1736289047332,-500.0,0.00022979,3]
[348060112,1736289047342,-500.0,0.00022979,3]
[348060113,1736289047352,-19079.81593618,0.0002298,3]
[348060114,1736289047364,-14401.55978722,0.0002298,3]
[348060115,1736289047373,-175734.81339855,0.0002298,10]
[348062014,1736289721885,165.318829,0.00013973,2]
[348062018,1736290178191,493.0,0.00025,120]
[348062075,1736290232937,-351.66887489,0.000189,2]
[348062077,1736290232947,-424.57,0.000195,2]
[348062079,1736290232957,-500.0,0.00019999,3]
[348062081,1736290232967,-500.0,0.00020273,3]
[348062083,1736290232977,-500.0,0.00020547,3]
[348062085,1736290232986,-2925.948205,0.00020785,2]
[348062087,1736290232996,-99.085425,0.00020807,2]
[348062228,1736290238475,-66.233404,0.00020807,2]
[348062230,1736290238484,-500.0,0.0002082,2]
[348062232,1736290238494,-163.158,0.0002088,2]
[348062233,1736290238503,-151.29596567,0.00020993,2]
[348062235,1736290238513,-300.0,0.00021091,2]
[348062238,1736290238523,-500.0,0.00021092,3]
[348062240,1736290238532,-500.0,0.00021092,3]
[348062242,1736290238542,-500.0,0.00021092,3]
[348062244,1736290238552,-500.0,0.00021092,3]
[348062245,1736290238561,-500.0,0.00021092,3]
[348062248,1736290238571,-517.79701833,0.00021092,3]
[348062250,1736290238580,-500.0,0.00021092,3]
[348062252,1736290238590,-500.0,0.00021092,3]
[348062254,1736290238600,-589.36,0.00021092,3]
[348062256,1736290238610,-500.0,0.00021092,3]
[348062258,1736290238619,-606.42,0.00021092,3]
[348062259,1736290238629,-500.0,0.00021092,3]
[348062261,1736290238638,-500.0,0.00021092,3]
[348062263,1736290238648,-622.22454297,0.00021092,3]
[348062265,1736290238657,-500.0,0.00021092,3]
[348062267,1736290238667,-500.0,0.00021092,3]
[348062269,1736290238676,-599.8,0.00021092,3]
[348062271,1736290238685,-500.0,0.00021092,3]
[348062273,1736290238695,-589.60471797,0.00021092,3]
[348062275,1736290238704,-500.0,0.00021092,3]
[348062277,1736290238714,-500.0,0.00021092,3]
[348062279,1736290238725,-500.0,0.00021092,3]
[348062281,1736290238736,-500.0,0.00021092,3]
[348062284,1736290238745,-500.0,0.00021092,3]
[348062286,1736290238754,-500.0,0.00021092,3]
[348062288,1736290238764,-500.0,0.00021092,3]
[348062290,1736290238774,-509.61724572,0.00021092,3]
[348062292,1736290238783,-500.0,0.00021092,3]
[348062294,1736290238792,-504.92032518,0.00021092,3]
[348062296,1736290238802,-337.49100983,0.00021092,3]
[348062298,1736290238811,-198.494632,0.00021092,3]
[348062300,1736290238820,-500.0,0.00021092,3]
[348062302,1736290238829,-500.0,0.00021092,3]
[348062303,1736290238838,-500.0,0.00021092,3]
[348062305,1736290238847,-500.0,0.00021092,3]
[348062307,1736290238856,-500.0,0.00021092,3]
[348062309,1736290238865,-500.0,0.00021092,3]
[348062312,1736290238876,-500.0,0.00021092,3]
[348062314,1736290238885,-500.0,0.00021092,3]
[348062316,1736290238895,-500.0,0.00021092,3]
[348062317,1736290238904,-500.0,0.00021092,3]
[348062319,1736290238913,-500.0,0.00021092,3]
[348062321,1736290238923,-500.0,0.00021092,3]
[348062323,1736290238932,-500.0,0.00021092,3]
[348062326,1736290238944,-500.0,0.00021092,3]
[348062328,1736290238952,-500.0,0.00021092,3]
[348062329,1736290238962,-957.67,0.00021092,3]
[348062331,1736290238972,-500.0,0.00021092,3]
[348062334,1736290238981,-645.9623802,0.00021092,3]
[348062335,1736290238991,-500.0,0.00021092,3]
[348062338,1736290239000,-384.55811297,0.00021092,3]
[348062340,1736290239010,-500.0,0.00021092,3]
[348062341,1736290239019,-500.0,0.00021092,3]
[348062344,1736290239029,-511.12909987,0.00021092,3]
[348062345,1736290239039,-500.0,0.00021092,3]
[348062347,1736290239048,-500.0,0.00021092,3]
[348062349,1736290239058,-155.23,0.00021092,2]
[348062351,1736290239067,-500.0,0.00021093,3]
[348062353,1736290239076,-500.0,0.00021093,3]
[348062355,1736290239085,-500.0,0.00021093,3]
[348062357,1736290239094,-500.0,0.00021093,3]
[348062359,1736290239103,-500.0,0.00021093,3]
[348062361,1736290239112,-500.0,0.00021093,3]
[348062363,1736290239122,-500.0,0.00021093,3]
[348062365,1736290239132,-434.99156106,0.00021093,3]
[348062367,1736290239141,-487.09699117,0.00021093,3]
[348062370,1736290239151,-500.0,0.00021093,3]
[348062372,1736290239162,-500.0,0.00021093,3]
[348062374,1736290239172,-377.76277059,0.00021093,3]
[348062376,1736290239181,-500.0,0.00021093,3]
[348062377,1736290239190,-151.01623333,0.00021093,3]
[348062379,1736290239199,-520.52888601,0.00021093,3]
[348062382,1736290239209,-500.0,0.00021093,3]
[348062384,1736290239219,-500.0,0.00021093,3]
[348062386,1736290239228,-503.40245848,0.00021093,3]
[348062387,1736290239238,-500.0,0.00021093,3]
[348062390,1736290239247,-500.0,0.00021093,3]
[348062391,1736290239257,-500.0,0.00021093,3]
[348062394,1736290239266,-500.0,0.00021093,3]
[348062396,1736290239276,-500.0,0.00021093,3]
[348062398,1736290239285,-500.0,0.00021093,3]
[348062400,1736290239295,-500.0,0.00021093,3]
[348062401,1736290239304,-285.04567685,0.00021093,3]
[348062404,1736290239313,-500.0,0.00021093,3]
[348062406,1736290239323,-500.0,0.00021093,3]
[348062408,1736290239333,-500.0,0.00021093,3]
[348062410,1736290239346,-500.0,0.00021093,3]
[348062412,1736290239356,-644.55,0.00021093,3]
[348062414,1736290239366,-289.47956803,0.00021093,3]
[348062416,1736290239375,-529.3626508,0.00021093,3]
[348062418,1736290239385,-500.0,0.00021093,3]
[348062420,1736290239396,-500.0,0.00021093,3]
[348062421,1736290239405,-500.0,0.00021093,3]
[348062423,1736290239415,-500.0,0.00021093,3]
[348062425,1736290239425,-500.0,0.00021093,3]
[348062427,1736290239435,-500.0,0.00021093,3]
[348062429,1736290239444,-500.0,0.00021093,3]
[348062431,1736290239454,-549.31,0.00021093,3]
[348062433,1736290239463,-500.0,0.00021093,3]
[348062435,1736290239473,-150.13684941,0.00021093,3]
[348062436,1736290239483,-614.27,0.00021093,3]
[348062438,1736290239492,-543.87,0.00021093,3]
[348062440,1736290239502,-195.75345351,0.00021093,3]
[348062442,1736290239515,-304.24654649,0.00021093,3]
[348062444,1736290239524,-213.28344871,0.00021093,3]
[348062446,1736290239536,-286.71655129,0.00021093,3]
[348062448,1736290239545,-503.58904801,0.00021093,3]
[348062450,1736290239555,-500.0,0.00021093,3]
[348062452,1736290239565,-500.0,0.00021093,3]
[348062454,1736290239575,-500.0,0.00021093,3]
[348062457,1736290239584,-500.0,0.00021093,3]
[348062458,1736290239594,-500.0,0.00021093,3]
[348062461,1736290239604,-500.0,0.00021094,3]
[348062463,1736290239613,-326.77756373,0.00021094,3]
[348062465,1736290239622,-500.0,0.00021094,3]
[348062467,1736290239632,-500.0,0.00021094,3]
[348062469,1736290239642,-500.0,0.00021094,3]
[348062471,1736290239651,-500.0,0.00021094,3]
[348062473,1736290239660,-518.44802163,0.00021094,3]
[348062475,1736290239670,-500.0,0.00021366,3]
[348062477,1736290239680,-500.0,0.00021366,3]
[348062479,1736290239689,-321.7,0.00021366,3]
[348062481,1736290239698,-538.84,0.00021366,3]
[348062483,1736290239707,-437.12,0.00021366,3]
[348062485,1736290239717,-500.0,0.00021366,3]
[348062487,1736290239726,-176.46,0.00021366,3]
[348062489,1736290239736,-181.7,0.00021366,3]
[348062491,1736290239745,-16.70455676,0.00021366,3]
[348062508,1736290239904,-940.96544324,0.00021366,3]
[348062510,1736290239914,-500.0,0.00021366,3]
[348062512,1736290239924,-500.0,0.00021367,3]
[348062514,1736290239933,-160.50048822,0.00021367,3]
[348062516,1736290239942,-533.53,0.00021367,3]
[348062518,1736290239952,-500.0,0.00021367,3]
[348062520,1736290239962,-500.0,0.00021367,3]
[348062522,1736290239972,-216.33583234,0.00021368,3]
[348062525,1736290239983,-380.35416766,0.00021368,3]
[348062528,1736290239993,-500.0,0.00021368,3]
[348062531,1736290240003,-500.0,0.00021368,3]
[348062533,1736290240012,-229.49,0.00021368,3]
[348062535,1736290240021,-151.29596564,0.00021371,2]
[348062537,1736290240032,-502.15713978,0.0002164,3]
[348062538,1736290240042,-211.93150082,0.0002164,3]
[348062581,1736290240464,-446.23757987,0.00019997,3]
[348062884,1736290243478,-53.76242013,0.00019997,3]
[348062886,1736290243487,-500.0,0.00020271,3]
[348062888,1736290243497,-500.0,0.00020545,3]
[348062890,1736290243506,-500.0,0.00020819,3]
[348062892,1736290243515,-500.0,0.00021093,3]
[348062894,1736290243524,-745.73849918,0.0002164,3]
[348062896,1736290243534,-621.39900405,0.0002164,3]
[348062898,1736290243543,-166.6,0.00021641,3]
[348062900,1736290243553,-500.0,0.00021641,3]
[348062902,1736290243562,-500.0,0.00021642,3]
[348062904,1736290243571,-151.29596564,0.00021748,2]
[348062906,1736290243580,-525.952,0.0002183,2]
[348062908,1736290243590,-957.67,0.00021914,3]
[348062910,1736290243599,-500.0,0.00021915,3]
[348062912,1736290243609,-500.0,0.00021916,3]
[348062914,1736290243618,-150.0,0.00022,2]
[348062917,1736290243627,-151.29596564,0.00022126,2]
[348062920,1736290243636,-504.64779304,0.00022188,3]
[348062923,1736290243645,-500.0,0.00022188,3]
[348062926,1736290243654,-500.0,0.00022188,3]
[348062928,1736290243663,-544.62,0.00022188,3]
[348062931,1736290243672,-500.0,0.00022188,3]
[348062932,1736290243682,-500.0,0.00022188,3]
[348062934,1736290243691,-957.67,0.00022188,3]
[348062936,1736290243700,-500.0,0.00022189,3]
[348062939,1736290243709,-500.0,0.0002219,3]
[348062940,1736290243719,-957.67,0.00022462,3]
[348062942,1736290243729,-500.0,0.00022463,3]
[348062944,1736290243738,-275.63,0.00022464,3]
[348062946,1736290243747,-151.29596564,0.00022503,2]
[348062948,1736290243757,-5577.24444283,0.00022563,2]
[348062950,1736290243766,-957.67,0.00022736,3]
[348062952,1736290243776,-500.0,0.00022737,3]
[348062954,1736290243785,-151.29596564,0.00022881,2]
[348062956,1736290243794,-155.84854553,0.000229,20]
[348062958,1736290243804,-150.0,0.000229,10]
[348062960,1736290243813,-420.0,0.0002294,2]
[348062962,1736290243823,-500.0,0.00022973,2]
[348062964,1736290243833,-159.8236228,0.00022979,2]
[348062966,1736290243842,-167.26581929,0.0002298,2]
[348062968,1736290243851,-429.08676322,0.0002298,2]
[348062970,1736290243861,-459.7407822,0.0002298,2]
[348062972,1736290243871,-269.599362,0.0002298,7]
[348062974,1736290243880,-151.0,0.0002298,7]
[348062976,1736290243889,-151.0,0.0002298,7]
[348062978,1736290243898,-151.0,0.0002298,7]
[348062980,1736290243908,-151.0,0.0002298,7]
[348062981,1736290243917,-151.0,0.0002298,7]
[348062982,1736290243927,-151.0,0.0002298,7]
[348062983,1736290243936,-151.0,0.0002298,7]
[348062984,1736290243946,-151.0,0.0002298,7]
[348062985,1736290243955,-151.0,0.0002298,7]
[348062986,1736290243964,-151.0,0.0002298,7]
[348062987,1736290243974,-151.0,0.0002298,7]
[348062988,1736290243983,-151.0,0.0002298,7]
[348062989,1736290243993,-151.0,0.0002298,7]
[348062990,1736290244002,-151.0,0.0002298,7]
[348062991,1736290244011,-151.0,0.0002298,7]
[348062992,1736290244020,-151.0,0.0002298,7]
[348062993,1736290244029,-151.0,0.0002298,7]
[348062994,1736290244039,-151.0,0.0002298,7]
[348062995,1736290244048,-151.0,0.0002298,7]
[348062996,1736290244057,-151.0,0.0002298,7]
[348062997,1736290244066,-151.0,0.0002298,7]
[348062999,1736290244077,-151.0,0.0002298,7]
[348063001,1736290244086,-151.0,0.0002298,7]
[348063003,1736290244096,-172.954272,0.0002298,7]
[348063005,1736290244105,-171.114018,0.0002298,7]
[348063007,1736290244114,-249.579448,0.00022981,7]
[348063009,1736290244124,-151.0,0.00022981,7]
[348063011,1736290244134,-151.0,0.00022981,7]
[348063013,1736290244143,-151.0,0.00022981,7]
[348063015,1736290244152,-151.0,0.00022981,7]
[348063017,1736290244162,-151.0,0.00022981,7]
[348063019,1736290244172,-151.0,0.00022981,7]
[348063021,1736290244181,-151.0,0.00022981,7]
[348063023,1736290244191,-151.0,0.00022981,7]
[348063025,1736290244200,-151.0,0.00022981,7]
[348063027,1736290244210,-151.0,0.00022981,7]
[348063030,1736290244219,-151.0,0.00022981,7]
[348063032,1736290244228,-151.0,0.00022981,7]
[348063034,1736290244237,-151.0,0.00022981,7]
[348063036,1736290244247,-188.823429,0.00022981,7]
[348063037,1736290244256,-151.0,0.00022981,7]
[348063039,1736290244265,-151.0,0.00022981,7]
[348063041,1736290244274,-151.0,0.00022981,7]
[348063043,1736290244283,-151.0,0.00022981,7]
[348063045,1736290244292,-151.0,0.00022981,7]
[348063047,1736290244301,-151.0,0.00022981,7]
[348063050,1736290244310,-151.0,0.00022981,7]
[348063051,1736290244320,-151.0,0.00022981,7]
[348063053,1736290244329,-151.0,0.00022981,7]
[348063055,1736290244339,-151.0,0.00022981,7]
[348063057,1736290244350,-151.0,0.00022981,7]
[348063060,1736290244359,-151.0,0.00022981,7]
[348063061,1736290244369,-151.0,0.00022981,7]
[348063063,1736290244379,-151.0,0.00022981,7]
[348063065,1736290244390,-151.0,0.00022981,7]
[348063068,1736290244399,-241.919702,0.00022981,7]
[348063069,1736290244407,-151.0,0.00022981,7]
[348063072,1736290244419,-151.0,0.00022981,7]
[348063073,1736290244428,-151.0,0.00022981,7]
[348063075,1736290244438,-151.0,0.00022981,7]
[348063078,1736290244447,-169.740492,0.00022981,7]
[348063080,1736290244456,-151.0,0.00022981,7]
[348063081,1736290244465,-151.0,0.00022981,7]
[348063083,1736290244474,-151.0,0.00022981,7]
[348063085,1736290244483,-151.0,0.00022981,7]
[348063087,1736290244492,-225.864084,0.00022981,7]
[348063090,1736290244502,-151.0,0.00022981,7]
[348063091,1736290244511,-151.0,0.00022981,7]
[348063094,1736290244521,-151.0,0.00022981,7]
[348063095,1736290244530,-151.0,0.00022981,7]
[348063097,1736290244540,-151.0,0.00022981,7]
[348063099,1736290244549,-151.0,0.00022981,7]
[348063102,1736290244559,-154.982918,0.00022981,7]
[348063104,1736290244568,-151.0,0.00022981,7]
[348063105,1736290244577,-151.0,0.00022981,7]
[348063108,1736290244587,-151.0,0.00022981,7]
[348063109,1736290244596,-151.0,0.00022981,7]
[348063112,1736290244605,-151.0,0.00022981,7]
[348063114,1736290244615,-151.0,0.00022981,7]
[348063116,1736290244624,-151.0,0.00022981,7]
[348063118,1736290244633,-151.0,0.00022981,7]
[348063119,1736290244642,-151.0,0.00022981,7]
[348063121,1736290244651,-151.0,0.00022981,7]
[348063124,1736290244661,-151.0,0.00022981,7]
[348063125,1736290244669,-151.0,0.00022981,7]
[348063127,1736290244680,-191.86854,0.00022981,7]
[348063129,1736290244689,-9539.90796809,0.00022981,3]
[348063131,1736290244698,-1868.13425968,0.00022981,3]
[348065288,1736290740071,165.11651,0.00013973,2]
[348065936,1736291438993,-234.44591659,0.000189,2]
[348065938,1736291439002,-230.954019,0.000194,8]
[348065940,1736291439012,-486.11,0.000195,2]
[348065942,1736291439021,-500.0,0.00019997,2]
[348065944,1736291439030,-1986.69957283,0.0002028,2]
[348065946,1736291439042,-1368.30042717,0.0002028,2]
[348065948,1736291439051,-163.772567,0.00020511,2]
[348065950,1736291439061,-500.0,0.00021091,3]
[348065952,1736291439070,-500.0,0.00021094,3]
[348065954,1736291439079,-165.11651,0.00021209,2]
[348065956,1736291439087,-183.382,0.00021234,2]
[348065958,1736291439096,-171.96,0.00021365,3]
[348065960,1736291439105,-500.0,0.00021368,3]
[348065962,1736291439114,-500.0,0.00021642,3]
[348065964,1736291439123,-522.809,0.0002183,2]
[348065966,1736291439132,-300.0,0.00021901,2]
[348065968,1736291439141,-3355.0,0.00021902,4]
[348065970,1736291439150,-500.0,0.00021916,3]
[348065972,1736291439159,-500.0,0.0002219,3]
[348065973,1736291439168,-1200.0,0.00022461,2]
[348065975,1736291439178,-500.0,0.00022464,3]
[348065977,1736291439187,-500.0,0.00022738,3]
[348065979,1736291439197,-153.0,0.0002288,2]
[348065981,1736291439206,-6235.00381056,0.00022881,2]
[348065983,1736291439215,-378.24412484,0.00022881,2]
[348065985,1736291439224,-553.14138453,0.00022881,2]
[348065987,1736291439233,-161.44586606,0.00022881,7]
[348065989,1736291439243,-161.44586606,0.00022881,7]
[348065991,1736291439252,-161.44586606,0.00022881,7]
[348065993,1736291439261,-161.44586606,0.00022881,7]
[348065995,1736291439271,-161.44586606,0.00022881,7]
[348065997,1736291439280,-161.44586606,0.00022881,7]
[348065999,1736291439289,-161.44586606,0.00022881,7]
[348066000,1736291439298,-161.44586606,0.00022881,7]
[348066002,1736291439307,-161.44586606,0.00022881,7]
[348066004,1736291439316,-161.44586606,0.00022881,7]
[348066006,1736291439326,-161.44586606,0.00022881,7]
[348066008,1736291439335,-161.44,0.00022881,7]
[348066010,1736291439345,-152.94871521,0.00022881,7]
[348066012,1736291439354,-152.94871521,0.00022881,7]
[348066014,1736291439363,-152.94871521,0.00022881,7]
[348066016,1736291439372,-152.94871521,0.00022881,7]
[348066018,1736291439382,-152.94871521,0.00022881,7]
[348066020,1736291439391,-152.94871521,0.00022881,7]
[348066022,1736291439400,-152.94871521,0.00022881,7]
[348066024,1736291439409,-152.94871521,0.00022881,7]
[348066026,1736291439419,-152.94871521,0.00022881,7]
[348066028,1736291439429,-152.94871521,0.00022881,7]
[348066030,1736291439438,-152.94871521,0.00022881,7]
[348066032,1736291439447,-152.94871521,0.00022881,7]
[348066034,1736291439455,-152.94871521,0.00022881,7]
[348066036,1736291439464,-152.94871521,0.00022881,7]
[348066038,1736291439474,-152.94871521,0.00022881,7]
[348066039,1736291439484,-152.94871521,0.00022881,7]
[348066042,1736291439493,-152.94871521,0.00022881,7]
[348066044,1736291439503,-152.94871521,0.00022881,7]
[348066046,1736291439513,-152.94,0.00022881,7]
[348066047,1736291439522,-153.0,0.00022884,2]
[348066059,1736291439632,-164.475,0.00022973,2]
[348066061,1736291439642,-537.43822182,0.00022973,2]
[348066063,1736291439653,-678.35,0.00022979,3]
[348066065,1736291439662,-500.0,0.0002298,2]
[348066067,1736291439672,-264.81832778,0.0002298,2]
[348066069,1736291439682,-267.98048325,0.0002298,2]
[348066071,1736291439692,-280.65956471,0.0002298,2]
[348066073,1736291439702,-29475.56479725,0.00022981,3]
[348066075,1736291439715,-9862.09958038,0.00022981,3]
[348066077,1736291439724,-79920.0243138,0.00022981,10]
[348066733,1736291446793,-394.0,0.00021234,2]
[348066735,1736291446804,-25.81826451,0.00022981,10]
[348066737,1736291446816,-3430.03429998,0.00022981,10]
[348066740,1736291446827,-7563.90194572,0.00022981,10]
[348068232,1736291639006,164.947684,0.00013973,2]
[348068234,1736291748823,178.548078,0.0002411,120]
[348069272,1736292643240,-4845.80726465,0.00019,3]
[348069274,1736292643253,-452.94223795,0.00019,3]
[348072064,1736292672676,162.859804,0.00013973,2]
[348072455,1736293284572,1141.95,0.00013748,2]
[348072457,1736293570431,162.840054,0.00013973,2]
[348072514,1736293832357,-1112.07463931,0.00015285,2]
[348073095,1736293838080,-3887.92536069,0.00015285,2]
[348073097,1736293838090,-5000.0,0.00015285,2]
[348073099,1736293838101,-5000.0,0.00015285,2]
[348073101,1736293838112,-5000.0,0.00015285,2]
[348073103,1736293838123,-5000.0,0.00015285,2]
[348073105,1736293838133,-544.39147876,0.000189,2]
[348073108,1736293838145,-1876.1504974,0.00019,3]
[348073110,1736293838156,-302.99997879,0.00019,2]
[348073112,1736293838167,-164.037723,0.00019178,2]
[348073114,1736293838178,-778.17,0.000198,2]
[348073116,1736293838189,-164.38435737,0.00020001,2]
[348073119,1736293838199,-500.0,0.000201,3]
[348073121,1736293838210,-500.0,0.000201,3]
[348073123,1736293838220,-500.0,0.000201,3]
[348073125,1736293838231,-300.0,0.000201,2]
[348073127,1736293838241,-500.0,0.000201,3]
[348073129,1736293838252,-500.0,0.000201,3]
[348073132,1736293838263,-500.0,0.000201,3]
[348073134,1736293838273,-32063.64637624,0.00020101,3]
[348073136,1736293838284,-4989.42760259,0.00020101,3]
[348073139,1736293838304,-2023.60463694,0.00020101,3]
[348073142,1736293838319,-500.0,0.00020101,3]
[348073144,1736293838330,-498.8503,0.00020101,3]
[348073146,1736293838342,-500.0,0.00020101,3]
[348073148,1736293838353,-500.0,0.00020101,3]
[348073151,1736293838363,-500.0,0.00020101,3]
[348073153,1736293838374,-589.60471797,0.00020101,3]
[348073155,1736293838384,-500.0,0.00020101,3]
[348073157,1736293838397,-500.0,0.00020101,3]
[348073159,1736293838408,-500.0,0.00020101,3]
[348073161,1736293838419,-500.0,0.00020101,3]
[348073164,1736293838430,-504.92032518,0.00020101,3]
[348073166,1736293838441,-489.90650052,0.00020101,3]
[348073168,1736293838459,-10.09349948,0.00020101,3]
[348073171,1736293838471,-500.0,0.00020101,3]
[348073173,1736293838483,-509.61724572,0.00020101,3]
[348073175,1736293838494,-500.0,0.00020101,3]
[348073177,1736293838504,-500.0,0.00020101,3]
[348073179,1736293838515,-337.49100983,0.00020101,3]
[348073181,1736293838526,-438.32745728,0.00020101,3]
[348073184,1736293838539,-61.67254272,0.00020101,3]
[348073186,1736293838549,-198.494632,0.00020101,3]
[348073188,1736293838561,-500.0,0.00020101,3]
[348073190,1736293838572,-500.0,0.00020101,3]
[348073193,1736293838583,-500.0,0.00020101,3]
[348073195,1736293838594,-86.69182983,0.00020101,3]
[348073357,1736293840209,-458.32817017,0.00020101,3]
[348073359,1736293840219,-375.36545285,0.00020101,3]
[348073361,1736293840228,-500.0,0.00020101,3]
[348073363,1736293840237,-500.0,0.00020101,3]
[348073365,1736293840246,-500.0,0.00020101,3]
[348073367,1736293840256,-500.0,0.00020101,3]
[348073369,1736293840265,-500.0,0.00020101,3]
[348073371,1736293840274,-211.81429719,0.00020101,3]
[348073373,1736293840283,-422.1339163,0.00020101,3]
[348073375,1736293840293,-500.0,0.00020101,3]
[348073377,1736293840303,-500.0,0.00020101,3]
[348073379,1736293840313,-272.26966994,0.00020101,3]
[348073381,1736293840325,-227.73033006,0.00020101,3]
[348073383,1736293840335,-500.0,0.00020101,3]
[348073385,1736293840345,-20.85535623,0.00020101,3]
[348073387,1736293840356,-503.01188397,0.00020101,3]
[348073390,1736293840368,-122.09514,0.00020101,3]
[348073392,1736293840379,-500.0,0.00020101,3]
[348073394,1736293840388,-500.0,0.00020101,3]
[348073396,1736293840399,-500.0,0.00020101,3]
[348073397,1736293840411,-500.0,0.00020101,3]
[348073400,1736293840420,-16.23779297,0.00020101,3]
[348073402,1736293840431,-483.76220703,0.00020101,3]
[348073404,1736293840443,-500.0,0.00020101,3]
[348073406,1736293840453,-500.0,0.00020101,3]
[348073408,1736293840462,-500.0,0.00020101,3]
[348073410,1736293840472,-500.0,0.00020101,3]
[348073412,1736293840481,-500.0,0.00020101,3]
[348073414,1736293840491,-500.0,0.00020101,3]
[348073416,1736293840500,-180.47823849,0.00020101,3]
[348073418,1736293840509,-500.0,0.00020101,3]
[348073420,1736293840519,-500.0,0.00020101,3]
[348073422,1736293840528,-500.0,0.00020101,3]
[348073424,1736293840537,-227.08520886,0.00020101,3]
[348073426,1736293840547,-454.68234491,0.00020101,3]
[348073429,1736293840559,-45.31765509,0.00020101,3]
[348073431,1736293840568,-500.0,0.00020101,3]
[348073433,1736293840578,-36.72837599,0.00020101,3]
[348073435,1736293840590,-463.27162401,0.00020101,3]
[348073437,1736293840600,-500.0,0.00020101,3]